bitfinex/quotes_ETHUSD_20241003
["timestamp","ask_amount","ask_price","bid_price","bid_amount"]
[1727985342058,4.24138,2357.8,2357.3,0.7768]
[1727985342222,4.24192,2357.5,2357.1,0.7731]
[1727985342431,4.24208,2357.4,2357.1,0.7731]
[1727985342740,4.24208,2357.4,2357.1,0.85243668]
[1727985344624,4.24188,2357.5,2357.1,0.85243668]
[1727985344827,4.24188,2357.5,2357.1,1.78620735]
[1727985345813,4.2417,2357.6,2357.1,6.02866735]
[1727985346078,4.2417,2357.6,2357.2,4.24216]
[1727985346718,4.2417,2357.6,2357.1,5.94936067]
[1727985346719,4.24181,2357.5,2357.1,5.94936067]
[1727985346936,8.48376,2357.5,2357.1,5.94936067]
[1727985347160,4.24197,2357.4,2357.1,0.07933668]
[1727985347366,4.24227,2357.3,2357.1,0.07933668]
[1727985347514,4.24274,2357.0,2356.8,0.7507]
[1727985347920,4.24274,2357.0,2356.6,4.24328]
[1727985348350,0.7724,2357.1,2356.6,4.24328]
[1727985348351,0.7724,2357.1,2356.7,4.24311]
[1727985348653,5.0149,2357.1,2356.7,5.167662]
[1727985349220,0.7724,2357.1,2356.7,5.167662]
[1727985349423,5.0149,2357.1,2356.7,5.167662]
[1727985349645,5.0149,2357.1,2356.7,5.167772]
[1727985349920,5.01491,2357.1,2356.7,5.167772]
[1727985350323,4.24306,2356.8,2356.4,4.24362]
[1727985350573,4.24333,2356.7,2356.3,4.24382]
[1727985350724,4.24378,2356.4,2356.0,5.05067]
[1727985350918,4.24378,2356.4,2356.0,6.89519519]
[1727985351320,4.24345,2356.6,2356.1,4.24423]
[1727985351321,4.24359,2356.5,2356.1,4.24423]
[1727985351549,4.24361,2356.5,2356.0,6.89519519]
[1727985352757,4.24361,2356.5,2356.1,4.24429]
[1727985353132,4.24376,2356.4,2356.0,6.89521519]
[1727985353357,8.48764,2356.4,2355.8,0.8062]
[1727985353563,4.24376,2356.4,2355.9,4.24448]
[1727985353774,4.24376,2356.4,2355.9,8.48902]
[1727985353924,4.24376,2356.4,2355.9,4.24448]
[1727985354124,4.24376,2356.4,2355.9,8.48904]
[1727985354356,4.24394,2356.3,2355.9,8.994108]
[1727985354722,4.2438,2356.4,2355.9,4.749548]
[1727985354924,4.2436,2356.5,2356.0,4.24447]
[1727985355146,4.2436,2356.5,2356.1,4.24425]
[1727985355372,4.24382,2356.4,2356.0,4.24447]
[1727985355670,4.24382,2356.4,2356.0,4.2444]
[1727985355957,4.24376,2356.4,2356.0,4.24444]
[1727985356165,4.24384,2356.4,2356.0,4.24435]
[1727985356366,4.24359,2356.5,2356.1,4.24429]
[1727985356525,4.24351,2356.6,2356.1,4.24421]
[1727985357160,4.24367,2356.5,2356.1,4.24421]
[1727985357321,4.24386,2356.4,2355.9,4.749708]
[1727985357521,4.24395,2356.3,2355.9,4.749708]
[1727985357726,0.7635,2356.3,2355.9,4.749568]
[1727985357930,5.00745,2356.3,2355.8,5.051]
[1727985358160,5.00745,2356.3,2355.9,4.24454]
[1727985358364,9.25151,2356.3,2355.9,4.24454]
[1727985358659,5.00745,2356.3,2355.9,4.24454]
[1727985358864,0.7635,2356.3,2355.9,4.24462]
[1727985359128,4.24372,2356.5,2355.9,4.24462]
[1727985359129,5.00722,2356.5,2356.0,4.24432]
[1727985359480,5.00722,2356.5,2356.1,4.2442]
[1727985359830,5.00719,2356.5,2356.1,4.2442]
[1727985360171,5.00719,2356.5,2356.0,4.24437]
[1727985360172,0.7635,2356.5,2356.0,4.24437]
[1727985360476,5.00712,2356.5,2356.1,4.24417]
[1727985360627,5.00712,2356.5,2356.1,0.8993622]
[1727985360831,0.7635,2356.5,2356.1,5.1436122]
[1727985361274,0.7635,2356.5,2356.1,9.3878422]
[1727985361455,3.0,2356.6,2356.2,4.24403]
[1727985361640,3.0,2356.6,2356.1,5.1435922]
[1727985361641,4.24367,2356.5,2356.1,5.1435922]
[1727985362481,7.24357,2356.6,2356.1,9.3877922]
[1727985362680,7.24351,2356.6,2356.2,4.24411]
[1727985362988,4.2429,2356.9,2356.3,4.24378]
[1727985363158,3.0,2356.8,2356.5,4.24355]
[1727985363478,5.03097,2357.1,2356.7,4.24321]
[1727985363788,4.24225,2357.3,2356.8,4.24302]
[1727985363789,4.24242,2357.2,2356.8,4.24302]
[1727985363941,5.03055,2357.3,2356.9,4.24278]
[1727985364144,5.03055,2357.3,2356.8,4.24297]
[1727985364382,5.03055,2357.3,2356.8,4.744097]
[1727985364582,0.7883,2357.3,2356.9,4.24275]
[1727985364820,4.2421,2357.4,2356.9,4.24275]
[1727985365088,4.24215,2357.3,2356.9,4.24275]
[1727985365255,4.2421,2357.4,2356.9,4.24275]
[1727985365581,4.24205,2357.4,2356.9,4.7939077]
[1727985365752,4.24199,2357.4,2357.0,4.24264]
[1727985365956,8.48409,2357.4,2357.0,4.24264]
[1727985366145,8.48409,2357.4,2356.9,0.5512177]
[1727985366347,8.48409,2357.4,2356.9,4.7940477]
[1727985366546,4.24199,2357.4,2357.0,5.14636077]
[1727985366950,4.24227,2357.3,2357.0,0.90369077]
[1727985368055,4.24227,2357.3,2356.9,4.24285]
[1727985368672,4.24227,2357.3,2356.7,0.7683]
[1727985368673,4.24234,2357.2,2356.8,4.243]
[1727985369049,4.24253,2357.1,2356.7,5.01145]
[1727985369244,5.0742,2357.0,2356.5,11.03781108]
[1727985369483,4.24297,2356.9,2356.6,1.10378111]
[1727985369697,8.48596,2356.9,2356.5,6.03239108]
[1727985370049,4.24297,2356.9,2356.5,6.03239108]
[1727985370268,4.24297,2356.9,2356.5,10.27596108]
[1727985370795,8.48592,2356.9,2356.5,6.03239108]
[1727985370960,4.24295,2356.9,2356.5,6.03239108]
[1727985371292,4.24295,2356.9,2356.5,10.27594108]
[1727985371444,4.24295,2356.9,2356.5,11.80410219]
[1727985371649,5.0742,2357.0,2356.5,11.80410219]
[1727985371843,4.24286,2356.9,2356.5,11.80410219]
[1727985372300,4.24286,2356.9,2356.5,7.56055219]
[1727985372532,5.07421,2357.0,2356.6,4.24339]
[1727985372845,5.07421,2357.0,2356.6,5.84812822]
[1727985373046,9.31701,2357.0,2356.6,1.60473822]
[1727985373340,9.31703,2357.0,2356.6,1.60473822]
[1727985373545,9.31703,2357.0,2356.5,4.24344]
[1727985374245,5.07421,2357.0,2356.5,8.48693]
[1727985374536,4.24245,2357.2,2356.8,4.24303]
[1727985374841,0.7868,2357.3,2356.9,4.24281]
[1727985374996,4.24206,2357.4,2357.0,4.24257]
[1727985375198,5.02852,2357.6,2357.2,0.8301]
[1727985375497,4.24169,2357.6,2357.2,0.8301]
[1727985375901,4.2418,2357.5,2357.2,0.8301]
[1727985376237,3.0,2357.5,2357.2,0.8301]
[1727985376443,4.2415,2357.7,2357.2,5.579554]
[1727985376603,0.7722,2357.8,2357.2,1.337354]
[1727985376604,4.24162,2357.6,2357.2,1.337354]
[1727985377033,4.24162,2357.6,2357.2,5.579664]
[1727985377229,4.24142,2357.7,2357.3,4.24212]
[1727985377397,4.24142,2357.7,2357.2,5.579664]
[1727985377398,4.2416,2357.6,2357.2,5.579664]
[1727985377597,4.2416,2357.6,2357.3,0.5579664]
[1727985378141,4.24214,2357.3,2356.9,5.06715]
[1727985378303,4.24224,2357.3,2356.9,5.06715]
[1727985378510,4.24162,2357.6,2356.9,0.8244]
[1727985378828,4.24162,2357.6,2356.8,6.96401208]
[1727985378829,4.24282,2357.0,2356.8,6.03239108]
[1727985379031,4.24282,2357.0,2356.7,0.8244]
[1727985379233,4.24253,2357.1,2356.7,1.755534]
[1727985379436,4.24253,2357.1,2356.7,0.8244]
[1727985379738,4.2427,2357.0,2356.7,0.8244]
[1727985380118,4.24253,2357.1,2356.7,5.06752]
[1727985380935,0.8233,2357.2,2356.7,5.06752]
[1727985380936,5.0657,2357.2,2356.7,5.06752]
[1727985381140,4.24262,2357.1,2356.7,5.06752]
[1727985381337,4.24269,2357.0,2356.6,4.24325]
[1727985381540,4.24286,2356.9,2356.5,5.05528]
[1727985382028,4.24311,2356.8,2356.5,0.8118]
[1727985382339,5.06564,2357.2,2356.5,5.0552]
[1727985382340,4.24271,2357.0,2356.5,5.0552]
[1727985382646,4.24286,2356.9,2356.5,5.56072]
[1727985382803,4.24312,2356.8,2356.5,0.8118]
[1727985384232,4.24269,2357.0,2356.6,4.24331]
[1727985384606,4.2425,2357.1,2356.7,4.24314]
[1727985385206,4.2427,2357.0,2356.6,4.24331]
[1727985385405,4.2427,2357.0,2356.5,0.8118]
[1727985385646,4.24289,2356.9,2356.5,5.560921]
[1727985385832,4.24264,2357.1,2356.5,1.317341]
[1727985386014,4.24279,2357.0,2356.5,5.560751]
[1727985386220,4.24305,2356.8,2356.5,1.317341]
[1727985386403,4.2429,2356.9,2356.5,1.317341]
[1727985386602,4.24275,2357.0,2356.6,4.2434]
[1727985387413,4.24287,2356.9,2356.5,9.804271]
[1727985387748,8.48552,2357.0,2356.5,9.804271]
[1727985388133,4.24275,2357.0,2356.5,9.804271]
[1727985388345,4.24275,2357.0,2356.6,0.9804271]
[1727985388849,4.24264,2357.1,2356.6,0.9804271]
[1727985389011,4.24275,2357.0,2356.5,9.29867]
[1727985389437,4.24275,2357.0,2356.5,5.05523]
[1727985389438,4.24286,2356.9,2356.5,5.05523]
[1727985390035,0.8233,2357.2,2356.3,0.7889]
[1727985390212,4.24349,2356.6,2356.1,4.24422]
[1727985390419,4.24349,2356.6,2356.2,4.24398]
[1727985390648,0.761,2356.8,2356.3,4.24377]
[1727985390926,5.00415,2356.8,2356.4,4.24374]
[1727985391249,5.00415,2356.8,2356.3,4.24377]
[1727985391456,5.00415,2356.8,2356.4,4.24374]
[1727985392849,5.00415,2356.8,2356.3,8.48761]
[1727985393054,5.00415,2356.8,2356.4,0.47728861]
[1727985393259,5.00415,2356.8,2356.3,8.48762]
[1727985393552,9.24729,2356.8,2356.3,8.48762]
[1727985394046,4.24335,2356.7,2356.3,4.24377]
[1727985394250,4.24355,2356.6,2356.2,0.92771]
[1727985394616,0.761,2356.8,2355.9,11.09814108]
[1727985394958,4.24398,2356.3,2355.9,5.06575]
[1727985395141,4.2438,2356.4,2355.9,5.06568]
[1727985395450,4.24395,2356.3,2355.9,5.06584]
[1727985395654,4.24378,2356.4,2356.0,4.24447]
[1727985395838,4.24396,2356.3,2356.0,0.931031]
[1727985396039,4.24378,2356.4,2356.0,0.931031]
[1727985396338,4.24398,2356.3,2356.0,0.931031]
[1727985396949,5.05038,2356.4,2356.0,5.175431]
[1727985397157,9.29432,2356.4,2356.0,0.931031]
[1727985397355,4.24394,2356.3,2356.0,0.931031]
[1727985397710,5.05037,2356.4,2356.0,5.175371]
[1727985398144,4.24395,2356.3,2356.0,0.931031]
[1727985398355,4.24432,2356.1,2355.6,6.81049108]
[1727985398526,4.24459,2356.0,2355.6,5.02322]
[1727985398713,4.24459,2356.0,2355.6,0.7781]
[1727985399070,4.24459,2356.0,2355.6,5.950179]
[1727985399356,4.24432,2356.1,2355.6,5.950179]
[1727985399658,5.06527,2356.0,2355.6,0.7781]
[1727985399823,4.24466,2355.9,2355.5,4.24529]
[1727985400356,5.06527,2356.0,2355.5,8.49052]
[1727985400526,9.30985,2356.0,2355.5,4.24523]
[1727985400854,9.30984,2356.0,2355.5,4.24523]
[1727985401059,5.06527,2356.0,2355.5,8.49054]
[1727985401634,5.06527,2356.0,2355.5,4.24523]
[1727985401956,5.06527,2356.0,2355.5,8.49053]
[1727985402255,5.06527,2356.0,2355.6,4.24517]
[1727985402415,4.24466,2355.9,2355.4,5.02364]
[1727985402619,4.24466,2355.9,2355.5,4.24533]
[1727985403354,4.24414,2356.2,2355.8,4.24469]
[1727985403528,4.24414,2356.2,2355.9,0.827]
[1727985404416,4.24437,2356.1,2355.7,4.24484]
[1727985405054,4.24448,2356.0,2355.6,5.07216]
[1727985405419,5.03521,2356.3,2355.6,6.11444931]
[1727985405752,4.24448,2356.0,2355.6,6.11437931]
[1727985405954,4.24448,2356.0,2355.6,10.35943931]
[1727985406130,4.24467,2355.9,2355.6,1.86931931]
[1727985406336,4.24467,2355.9,2355.6,0.827]
[1727985406521,4.24485,2355.8,2355.6,0.827]
[1727985406839,4.24485,2355.8,2355.4,0.827]
[1727985406840,4.24509,2355.7,2355.4,0.827]
[1727985407934,5.03601,2355.8,2355.4,0.827]
[1727985408261,5.03601,2355.8,2355.4,5.07254]
[1727985408463,9.28102,2355.8,2355.4,0.827]
[1727985408622,4.24505,2355.7,2355.4,0.827]
[1727985409025,4.24505,2355.7,2355.3,4.24564]
[1727985409371,4.24505,2355.7,2355.2,5.07289]
[1727985409372,4.2452,2355.6,2355.2,5.07289]
[1727985409675,4.24505,2355.7,2355.3,4.24571]
[1727985409874,5.03599,2355.8,2355.4,4.24554]
[1727985410228,4.2451,2355.7,2355.3,4.24571]
[1727985411355,0.7911,2355.8,2355.5,4.24531]
[1727985411961,5.03594,2355.8,2355.4,4.24552]
[1727985412133,5.03594,2355.8,2355.5,0.849126]
[1727985412335,4.24447,2356.1,2355.6,0.7757]
[1727985412532,4.24379,2356.4,2355.9,4.24455]
[1727985412828,4.24379,2356.4,2355.6,0.7757]
[1727985412829,5.02319,2356.5,2356.1,4.24427]
[1727985413027,5.03674,2356.8,2356.3,4.2438]
[1727985413228,5.03674,2356.8,2356.4,5.04054]
[1727985413767,4.24322,2356.7,2356.4,0.7968]
[1727985414177,4.24341,2356.6,2356.4,0.7968]
[1727985414733,4.24322,2356.7,2356.4,0.7968]
[1727985415034,5.03684,2356.8,2356.4,0.7968]
[1727985415231,5.0639,2357.0,2356.4,0.7968]
[1727985415468,5.0639,2357.0,2356.5,4.24348]
[1727985415469,4.2427,2357.0,2356.5,4.24348]
[1727985415674,4.24294,2356.9,2356.4,5.04054]
[1727985415868,8.4855,2357.0,2356.4,5.04054]
[1727985416073,8.4855,2357.0,2356.5,4.32840146]
[1727985416287,4.24252,2357.1,2356.6,4.24338]
[1727985416443,4.24234,2357.2,2356.7,5.02923]
[1727985416644,4.24259,2357.1,2356.7,5.02923]
[1727985416973,4.24269,2357.0,2356.7,0.7861]
[1727985418965,4.24196,2357.4,2356.7,0.7861]
[1727985418966,3.0,2357.3,2356.7,0.7861]
[1727985419142,4.24232,2357.2,2356.8,4.24296]
[1727985419345,4.24223,2357.3,2356.9,4.24285]
[1727985419851,4.24223,2357.3,2356.8,5.170189]
[1727985420176,4.24233,2357.2,2356.8,0.927229]
[1727985420478,4.24254,2357.1,2356.8,0.927229]
[1727985420972,4.99329,2357.5,2356.8,0.927229]
[1727985420973,4.24233,2357.2,2356.8,0.927229]
[1727985421383,8.48446,2357.3,2356.8,5.170159]
[1727985421557,4.24219,2357.3,2356.8,5.170159]
[1727985421758,4.24244,2357.2,2356.8,0.927229]
[1727985422354,4.24254,2357.1,2356.8,0.927229]
[1727985422746,4.24244,2357.2,2356.7,5.02921]
[1727985422747,4.24268,2357.0,2356.7,0.7861]
[1727985422958,4.24302,2356.9,2356.5,0.93689415]
[1727985423191,4.24322,2356.7,2356.4,6.83539108]
[1727985423359,4.24304,2356.8,2356.4,1.91091911]
[1727985423563,4.24324,2356.7,2356.4,0.803]
[1727985425852,4.24306,2356.8,2356.4,0.803]
[1727985426054,4.24306,2356.8,2356.4,5.04668]
[1727985427881,4.24284,2357.0,2356.6,4.24337]
[1727985428060,4.24284,2357.0,2356.5,4.24355]
[1727985428265,8.48567,2357.0,2356.5,8.48704]
[1727985428473,4.24291,2356.9,2356.5,4.24349]
[1727985428684,4.24311,2356.8,2356.4,0.803]
[1727985428909,4.24269,2357.0,2356.4,5.04668]
[1727985429108,4.24288,2356.9,2356.4,0.803]
[1727985429282,4.24307,2356.8,2356.4,0.803]
[1727985429483,4.24307,2356.8,2356.4,5.04675]
[1727985429812,4.24348,2356.6,2356.1,4.99579]
[1727985430123,4.24348,2356.6,2356.2,4.24402]
[1727985430521,4.24359,2356.5,2356.1,4.99579]
[1727985430720,4.24378,2356.4,2356.1,0.7516]
[1727985430895,0.8314,2356.7,2355.9,0.7654]
[1727985430896,4.24403,2356.3,2355.9,0.7654]
[1727985431482,4.24378,2356.4,2356.0,4.24438]
[1727985431920,4.24403,2356.3,2355.9,5.01002]
[1727985433925,5.00104,2356.2,2355.7,4.24495]
[1727985434134,4.24439,2356.1,2355.7,4.24495]
[1727985434923,4.24439,2356.1,2355.6,5.04118]
[1727985435822,4.24404,2356.3,2355.9,4.24451]
[1727985436003,4.2439,2356.4,2356.0,4.24447]
[1727985436386,4.2439,2356.4,2355.9,4.24451]
[1727985436587,4.2439,2356.4,2355.9,8.48904]
[1727985436801,4.244,2356.3,2355.9,4.24451]
[1727985437089,4.24412,2356.2,2355.7,4.2449]
[1727985437415,4.24456,2356.0,2355.6,0.796]
[1727985437783,4.24456,2356.0,2355.6,5.04112]
[1727985439823,4.24467,2355.9,2355.6,0.796]
[1727985440062,4.24467,2355.9,2355.5,4.24522]
[1727985440431,4.24456,2356.0,2355.5,4.2452]
[1727985440432,4.24452,2356.0,2355.5,4.2452]
[1727985440725,4.24452,2356.0,2355.6,4.24512]
[1727985441116,0.8118,2356.1,2355.7,4.24497]
[1727985441332,4.244,2356.3,2355.8,5.07304]
[1727985441503,3.7704,2356.4,2355.9,4.24457]
[1727985441504,3.0,2356.4,2355.9,4.24457]
[1727985441703,4.24401,2356.3,2355.9,4.24457]
[1727985443241,4.24401,2356.3,2355.8,0.8282]
[1727985443455,4.24401,2356.3,2355.8,5.07297]
[1727985443456,4.2442,2356.2,2355.8,5.07297]
[1727985444817,4.2442,2356.2,2355.8,9.3177]
[1727985445443,4.24396,2356.3,2355.9,4.24464]
[1727985445803,4.24396,2356.3,2355.8,5.07293]
[1727985446009,4.24414,2356.2,2355.8,5.07293]
[1727985446231,4.24414,2356.2,2355.8,9.31766]
[1727985446425,4.24414,2356.2,2355.8,5.07293]
[1727985446611,7.2438,2356.4,2355.8,5.07291]
[1727985446919,4.24397,2356.3,2355.9,4.24464]
[1727985447123,4.24416,2356.2,2355.8,5.07303]
[1727985450147,4.24416,2356.2,2355.7,4.24497]
[1727985450148,4.2444,2356.1,2355.7,4.24497]
[1727985451445,5.07186,2356.2,2355.8,4.24484]
[1727985452461,0.8106,2356.7,2356.0,4.05663165]
[1727985452616,0.8106,2356.9,2356.4,4.24373]
[1727985452814,0.8106,2356.9,2356.4,0.805]
[1727985452815,4.24311,2356.8,2356.4,0.805]
[1727985453567,4.24311,2356.8,2356.3,4.24384]
[1727985453568,4.24322,2356.7,2356.3,4.24384]
[1727985453855,4.24307,2356.8,2356.4,4.24375]
[1727985454156,4.24307,2356.8,2356.4,5.173009]
[1727985454315,4.24307,2356.8,2356.4,0.929259]
[1727985454674,8.48629,2356.8,2356.3,4.24393]
[1727985454953,4.24307,2356.8,2356.3,8.48773]
[1727985455317,0.8106,2356.9,2356.3,8.48773]
[1727985455318,5.05348,2356.9,2356.4,4.24364]
[1727985455751,9.29645,2356.9,2356.4,4.24364]
[1727985456318,4.24311,2356.8,2356.4,4.24364]
[1727985456652,5.0535,2356.9,2356.5,4.24356]
[1727985456956,0.8106,2356.9,2356.6,4.2434]
[1727985457532,4.24272,2357.0,2356.6,4.2434]
[1727985458460,5.00127,2357.1,2356.7,4.24314]
[1727985458664,3.0,2357.2,2356.8,4.24294]
[1727985458835,4.68651198,2357.3,2356.9,4.24277]
[1727985459027,4.68651198,2357.3,2356.8,4.24294]
[1727985459221,4.7877212,2357.3,2356.8,8.48584]
[1727985459449,4.24189,2357.5,2357.0,0.7889]
[1727985459658,5.50736415,2357.7,2357.2,4.24222]
[1727985459860,4.24119,2357.9,2357.4,4.24184]
[1727985460083,4.24114,2357.9,2357.4,5.03078]
[1727985460622,4.24127,2357.8,2357.4,5.03078]
[1727985461140,0.8216,2358.0,2357.4,5.03078]
[1727985461346,4.24109,2357.9,2357.4,5.03068]
[1727985461545,4.24124,2357.8,2357.4,5.03068]
[1727985461766,0.8216,2358.0,2357.3,4.24211]
[1727985461935,4.24151,2357.7,2357.2,5.01885]
[1727985462136,4.24171,2357.6,2357.2,0.7767]
[1727985462336,0.848276,2357.7,2357.0,4.24254]
[1727985462337,4.24214,2357.3,2357.0,0.7767]
[1727985462551,4.24214,2357.3,2356.9,4.24284]
[1727985462799,4.24214,2357.3,2356.8,0.7767]
[1727985462800,4.2425,2357.1,2356.8,0.7767]
[1727985463113,8.48511,2357.1,2356.6,5.02002]
[1727985463282,9.333621,2357.1,2356.6,5.02002]
[1727985463769,4.24284,2357.0,2356.6,0.7767]
[1727985463974,4.24232,2357.2,2356.7,4.24318]
[1727985464171,4.24252,2357.1,2356.7,4.24318]
[1727985464415,4.24233,2357.2,2356.7,4.24318]
[1727985464586,4.2426,2357.1,2356.6,9.26326]
[1727985464796,4.2426,2357.1,2356.7,4.24321]
[1727985464995,4.24234,2357.2,2356.8,4.24292]
[1727985465431,4.24234,2357.2,2356.7,4.24321]
[1727985465720,4.666814,2357.1,2356.6,5.02002]
[1727985465880,4.24258,2357.1,2356.6,5.02002]
[1727985466078,8.48487,2357.2,2356.7,4.24313]
[1727985466285,4.24241,2357.2,2356.7,4.24313]
[1727985466900,4.24261,2357.1,2356.6,5.02002]
[1727985467110,4.24261,2357.1,2356.6,9.2633]
[1727985467418,4.24241,2357.2,2356.7,4.24312]
[1727985467722,4.24261,2357.1,2356.6,5.01998]
[1727985468324,4.24261,2357.1,2356.6,9.26328]
[1727985468493,4.24261,2357.1,2356.6,5.01998]
[1727985468911,4.24261,2357.1,2356.7,4.24321]
[1727985469599,8.05501,2357.5,2356.7,4.24321]
[1727985469600,8.48439,2357.3,2356.8,4.24297]
[1727985469789,4.24214,2357.3,2356.9,4.24277]
[1727985470687,8.48438,2357.3,2356.9,4.24277]
[1727985470892,4.24232,2357.2,2356.8,4.24301]
[1727985471119,4.24232,2357.2,2356.8,5.57496817]
[1727985471835,4.24214,2357.3,2356.8,9.81786817]
[1727985472037,4.24234,2357.2,2356.8,5.57485817]
[1727985472336,4.24252,2357.1,2356.8,1.33195817]
[1727985472487,4.24234,2357.2,2356.7,4.24312]
[1727985472888,4.24234,2357.2,2356.6,0.7767]
[1727985473131,4.24261,2357.1,2356.6,5.01999]
[1727985473531,4.24276,2357.0,2356.6,5.0201]
[1727985473700,4.24252,2357.1,2356.6,6.35211817]
[1727985474815,4.24252,2357.1,2356.7,4.24321]
[1727985475014,4.24252,2357.1,2356.6,10.59539817]
[1727985475214,4.24252,2357.1,2356.6,10.59531817]
[1727985475426,4.24252,2357.1,2356.6,6.35199817]
[1727985475629,4.24252,2357.1,2356.7,4.24314]
[1727985476017,4.24252,2357.1,2356.7,5.30265382]
[1727985477011,5.05488,2357.5,2357.0,4.24258]
[1727985477012,0.8131,2357.5,2357.0,4.24258]
[1727985477217,4.68582238,2357.6,2357.0,4.05663165]
[1727985477421,4.24199,2357.4,2357.1,0.90627317]
[1727985477618,0.44419238,2357.6,2357.1,0.90627317]
[1727985477819,5.00949,2357.7,2357.1,5.14875317]
[1727985477820,4.24181,2357.5,2357.1,5.14875317]
[1727985479948,4.24206,2357.4,2356.9,0.7634]
[1727985480163,4.24239,2357.2,2356.9,0.7634]
[1727985480371,4.24212,2357.4,2356.9,0.7634]
[1727985480522,4.24225,2357.3,2356.9,5.00618]
[1727985480935,4.24225,2357.3,2356.7,14.51869108]
[1727985480936,4.24258,2357.1,2356.7,14.51869108]
[1727985481131,4.24258,2357.1,2356.7,10.27547108]
[1727985481437,4.24251,2357.1,2356.7,10.27559108]
[1727985481637,4.24238,2357.2,2356.8,4.24303]
[1727985481941,5.169825,2357.2,2356.7,6.03239108]
[1727985482273,4.24275,2357.0,2356.7,6.03239108]
[1727985482475,4.24253,2357.1,2356.7,6.03239108]
[1727985482686,0.7898,2357.3,2356.7,6.03239108]
[1727985482971,4.24252,2357.1,2356.7,10.27545108]
[1727985483174,4.24257,2357.1,2356.7,10.27545108]
[1727985483335,5.03201,2357.3,2356.7,10.27545108]
[1727985483538,4.24206,2357.4,2356.9,4.24278]
[1727985483735,4.24218,2357.3,2356.9,4.24278]
[1727985484641,5.05857,2357.5,2357.0,4.24266]
[1727985484846,5.05857,2357.5,2357.0,5.00766]
[1727985484847,4.24198,2357.4,2357.0,5.00766]
[1727985485046,4.24198,2357.4,2357.0,5.932704]
[1727985485445,4.24171,2357.6,2357.1,4.2424]
[1727985485645,4.24171,2357.6,2357.2,4.24222]
[1727985485884,4.24138,2357.8,2357.5,0.7623]
[1727985486452,4.24127,2357.8,2357.5,0.7623]
[1727985486848,4.24142,2357.7,2357.5,0.7623]
[1727985487459,4.24142,2357.7,2357.3,0.7894]
[1727985488484,4.24145,2357.7,2357.3,5.534681]
[1727985488886,4.24161,2357.6,2357.3,1.292561]
[1727985489092,4.24161,2357.6,2357.1,0.7894]
[1727985489267,8.48333,2357.6,2357.1,5.03182]
[1727985489464,4.24178,2357.5,2357.1,0.7894]
[1727985489682,4.24206,2357.4,2357.1,0.7894]
[1727985490858,4.24206,2357.4,2357.0,4.24266]
[1727985491068,8.48411,2357.4,2357.0,4.24266]
[1727985491272,4.24205,2357.4,2357.0,4.24266]
[1727985493465,5.02545,2357.6,2357.0,4.24266]
[1727985493664,4.24185,2357.5,2357.1,4.24249]
[1727985493889,4.24196,2357.4,2357.0,4.24266]
[1727985494103,4.24185,2357.5,2357.0,4.24266]
[1727985494398,8.48376,2357.5,2357.0,4.24254]
[1727985494600,8.48376,2357.5,2357.0,8.48512]
[1727985495205,4.24153,2357.7,2357.2,4.24221]
[1727985495499,4.24153,2357.7,2357.2,8.48444]
[1727985495703,7.75415021,2358.0,2357.3,4.24209]
[1727985495704,4.24132,2357.8,2357.3,4.24209]
[1727985495900,3.0,2357.8,2357.5,4.24176]
[1727985496206,0.44415021,2358.0,2357.9,4.24106]
[1727985496409,0.44415021,2358.0,2357.7,5.0386]
[1727985496833,0.7569,2358.7,2357.7,5.0386]
[1727985496834,4.2399,2358.6,2357.8,4.79116]
[1727985496982,0.7569,2358.7,2357.8,4.79116]
[1727985496983,4.24017,2358.4,2357.8,0.55]
[1727985497389,4.24009,2358.5,2357.8,0.55]
[1727985497697,4.24019,2358.4,2357.8,0.55]
[1727985497901,4.24009,2358.5,2357.8,0.55]
[1727985498288,4.24016,2358.4,2357.8,0.55]
[1727985498903,4.24009,2358.5,2357.7,0.7972]
[1727985499089,4.24025,2358.4,2357.7,5.03852]
[1727985499898,4.24025,2358.4,2357.7,0.7972]
[1727985500258,3.7569,2358.7,2357.7,0.7972]
[1727985500259,4.24034,2358.3,2357.7,0.7972]
[1727985500525,4.24054,2358.2,2357.7,0.7972]
[1727985500985,4.24071,2358.1,2357.7,0.7972]
[1727985501417,4.24096,2358.0,2357.3,6.53632008]
[1727985501601,4.24115,2357.9,2357.4,0.7819]
[1727985501988,4.24096,2358.0,2357.4,0.7819]
[1727985503240,4.24127,2357.8,2357.4,0.7819]
[1727985503392,9.29695,2357.9,2357.4,0.7819]
[1727985503588,4.24153,2357.7,2357.1,0.8272]
[1727985503815,4.24192,2357.5,2357.1,0.8272]
[1727985505247,4.24192,2357.5,2356.9,6.82989108]
[1727985505248,4.24198,2357.4,2356.9,6.82989108]
[1727985505648,4.24192,2357.5,2356.9,6.82989108]
[1727985506056,4.24208,2357.4,2356.9,6.82989108]
[1727985506360,4.24198,2357.4,2356.9,8.0474567]
[1727985506560,4.24198,2357.4,2356.9,8.04618183]
[1727985507043,4.24181,2357.5,2356.9,8.04618183]
[1727985507249,4.24163,2357.6,2356.9,12.28901183]
[1727985508158,4.24163,2357.6,2356.9,12.28895183]
[1727985508358,4.24163,2357.6,2357.0,1.22889518]
[1727985508719,4.24196,2357.5,2356.9,6.82861621]
[1727985508920,8.48387,2357.5,2356.9,6.82861621]
[1727985509241,4.24191,2357.5,2356.9,6.82861621]
[1727985509414,4.24198,2357.4,2356.9,6.82861621]
[1727985509620,4.24198,2357.4,2356.7,5.34572511]
[1727985509621,0.8136,2357.4,2356.8,0.7739]